{"text_format":"1","workbook":"xlsx","n_sheets":1,"sheets":["Hárok1"],"not_rendered":{"charts":0,"images":0,"macros":1,"external_links":0,"defined_names":0,"comments":0,"pivot_tables":0},"unopened":[],"bounds":{"document_bytes":16777216,"sheet_cells":100000,"rows_first":2000,"rows_last":500,"rows_between":2000,"halvings":0,"cell_chars":16384,"cell_head_chars":4096},"cells_cut":0,"cells_raw":0,"read":"whole","date_system":"1900"}

{"sheet":"Hárok1","index":0,"n_rows":25,"n_cols":6,"rows_kept":25,"cut":false,"hidden":false,"merged":[]}
["https://knihy.heureka.cz/drz-hubu-a-padluj-vodacke-povidky/#o=2",{"$f":"TRIM(NAZOV_ESHOPU(A1))","v":"\n MegaKnihy.cz"},null,null,null,"Zmena prebehne pri zmene linku. Dá sa naprogramovať časovač, na každých napr. 10 min."]
["https://aku-vrtacky-a-skrutkovace.heureka.sk/bosch-gsr-18-v-ec-0-615-990-hr8/",{"$f":"TRIM(NAZOV_ESHOPU(A2))","v":"\n RR náradie"},null,null,null,"Ale to čo vy chcete, sa cez Excel určite nerobí. Vy chcete v reálnom čase monitorovať veľa produktov."]
["https://jizdni-kola.heureka.cz/leader-fox-factor-2018/",{"$f":"TRIM(NAZOV_ESHOPU(A3))","v":"\n Axit"},null,null,null,"Na to má možno Heureka nejaké svoje API, prípadne to ma cez Košík, alebo iné webové rozhranie vyriešené (ak to má)."]
["https://autoskla.heureka.cz/bmshop-folie-na-sklo-slunecni-75-x-300cm-light-black/",{"$f":"TRIM(NAZOV_ESHOPU(A4))","v":"\n bmshop.eu"},null,null,null,"Načítavať v reálnom čase takto nieje možné, to by zahltilo linku aj Excel."]
["https://lambda-sondy.heureka.cz/bosch-0-258-006-599_4/","\n Autodíly online",null,null,null,"Zmente si tretí rozdeľovací tag z \"<div class=\"\"buy\"\">\" na \"<div class=\"\"buy\" ,"]
["https://akvarijni-odkalovace.heureka.cz/dennerle-nano-mulmsauger/","\n AkvarkoEu",null,null,null,"aby nedávalo chybu, keď je tam to oranžové tlačítko \"Koupit na Heurece\"."]
["https://postroje-pro-psy.heureka.cz/hurtta-postroj-active/","\n Potřeby pro zvířata",null,null,null,"No a k tej poslednej veci s tým vyhľadávaním. Nie, suplovať vyhľadávanie na Heuréke komplikovaným"]
["https://detska-obuv.heureka.cz/keen-seacamp-ii-cnx-k-blue-depths-lime-green/","\n ONLINE-SPORT.cz",null,null,null,"ovládaním toho istého vyhľadávania cez VBA sa mi fakt nechce."]
["https://detska-obuv.heureka.cz/nike-sunray-adjust-navy-pink/","\n Crazyoutlet.cz",null,null,null,"Vyhľadajte si to tam, a len pklik na link - Kopírovať adresu odkazu, v Exceli Ctrl+V."]
["https://kava.heureka.cz/lavazza-qualita-rossa-mleta-kava-6-x-250-g/","\n ItalMoka.cz"]
["https://destilaty.heureka.cz/diplomatico-rum-reserva-exclusiva-12yo-0_7-l/","\n GastroKlub.cz",null,null,null,"Srepočet listu (aktualizácia), ak sa nespustí sama, tak Shift+F9 (alebo Vzorce - Výpočet - Prepočítať hárok)"]
["https://postovni-schranky.heureka.cz/postovni-schranka-320x360x135mm-plast-mix-barev/","\n ElektroInternet.cz"]
["https://doplnky-stresni-okna.heureka.cz/velux-zct-200-teleskopicka-tyc-100-180-cm/","\n e.coleman.cz"]
["https://vysavace.heureka.cz/lg-vr-65710-lvmp/","\n BScom s.r.o."]
["https://vysavace.heureka.cz/tesla-robostar-t30/","\n ExaSoft.cz"]
["https://mikrovlnne-trouby.heureka.cz/samsung-f300g-mg23f301tak/","\n K24.cz"]
["https://detska-kosmetika.heureka.cz/herbamedicus-detsky-prsni-balzam-pro-lepsi-dychani-50-ml/","\n Hronovská-lékárna.cz"]
["https://detska-kosmetika.heureka.cz/jason-kondicioner-vlasovy-merunka-480-ml/","\n Biolevel.cz"]
["https://inhalatory.heureka.cz/omron-inhalator-kompresorovy-c28p-compair/","\n Váhy a tukoměry"]
["https://inhalatory.heureka.cz/omron-c803-inhalator/","\n MALL.CZ"]
["https://masazni-pripravky.heureka.cz/namman-muay-thajsky-krem-100-g/","\n newfitshop.cz"]
[null,{"$error":"#VALUE!"}]
[null,{"$error":"#VALUE!"}]
[null,{"$error":"#VALUE!"}]
[null,{"$error":"#VALUE!"}]